[Event "5th EKA IIFL Investment 2019"]
[Site "Mumbai"]
[Date "2020.01.02"]
[Round "4.26"]
[White "Subhayan Kundu"]
[Black "Kaustuv, Kundu"]
[Result "1/2-1/2"]
[ECO "B28"]
[WhiteElo "2222"]
[BlackElo "2349"]
[Annotator "ChessBase"]
[PlyCount "81"]
[EventDate "2019.12.30"]
[EventType "swiss"]
[EventCountry "IND"]
[SourceTitle "playchess.com"]
[Source "ChessBase"]
[SourceQuality "1"]
[TimeControl "40/5400+30:1800+30"]

1. e4 {[%emt 0:00:00]} c5 {[%emt 0:00:00]} 2. Nf3 {[%emt 0:00:07]} a6 {[%emt 0:00:00]} 3. c4 {[%emt 0:00:20]} Nc6 {[%emt 0:00:00]} 4. d4 {[%emt 0:00:18]} cxd4 {[%emt 0:00:00]} 5. Nxd4 {[%emt 0:00:03]} e5 {[%emt 0:00:05]} 6. Nc2 {[%emt 0:01:00]} Nf6 {[%emt 0:00:18]} 7. Nc3 {[%emt 0:00:47]} Bc5 {[%emt 0:00:23]} 8. Be2 {[%emt 0:06:10]} O-O {[%emt 0:00:27]} 9. O-O {[%emt 0:00:06]} d6 {[%emt 0:00:30]} 10. Qd3 {[%emt 0:11:55]} Be6 {[%emt 0:03:07]} 11. Be3 {[%emt 0:00:15]} Bxe3 {[%emt 0:06:35]} 12. Qxe3 {[%emt 0:01:09]} Rc8 {[%emt 0:00:28]} 13. Rac1 {[%emt 0:10:43]} Qa5 {[%emt 0:02:50]} 14. Rfd1 {[%emt 0:06:24]} Rfd8 {[%emt 0:02:19]} 15. f3 {[%emt 0:08:40]} Qc5 {[%emt 0:11:15]} 16. Kf2 {[%emt 0:03:41]} Qxe3+ {[%emt 0:01:59]} 17. Nxe3 {[%emt 0:00:48]} Nd4 {[%emt 0:00:42]} 18. b3 {[%emt 0:00:28]} Kf8 {[%emt 0:01:18]} 19. Bf1 {[%emt 0:03:08]} g5 {[%emt 0:03:46]} 20. Ne2 {[%emt 0:00:48]} Nxe2 {[%emt 0:01:49]} 21. Bxe2 {[%emt 0:00:07]} Ke7 {[%emt 0:00:21]} 22. Bd3 {[%emt 0:04:24]} h5 {[%emt 0:01:58]} 23. g3 {[%emt 0:00:41]} h4 {[%emt 0:04:32]} 24. g4 {[%emt 0:01:09]} Nd7 {[%emt 0:01:46]} 25. Rc2 {[%emt 0:02:47]} Nc5 {[%emt 0:10:03]} 26. Be2 {[%emt 0:04:01]} Nd7 {[%emt 0:03:42]} 27. Bd3 {[%emt 0:02:27]} Nf8 {[%emt 0:00:13]} 28. Rcd2 {[%emt 0:00:47]} Ng6 {[%emt 0:00:27]} 29. Bf1 {[%emt 0:00:17]} Nf4 {[%emt 0:00:23]} 30. Ng2 {[%emt 0:00:28]} Ng6 {[%emt 0:02:51]} 31. Ne3 {[%emt 0:00:24]} Rc6 {[%emt 0:00:19]} 32. b4 {[%emt 0:04:23]} Rcc8 {[%emt 0:07:34]} 33. a4 {[%emt 0:00:48]} Nf4 {[%emt 0:07:42]} 34. a5 {[%emt 0:00:07]} Rd7 {[%emt 0:02:04]} 35. Kg1 {[%emt 0:03:49]} Rb8 {[%emt 0:02:50]} 36. Rb2 {[%emt 0:05:24]} b6 {[%emt 0:03:31]} 37. Ra1 {[%emt 0:00:05]} Rdb7 {[%emt 0:02:24]} 38. Nc2 {[%emt 0:02:19]} Rc7 {[%emt 0:02:16]} 39. Ne3 {[%emt 0:00:13]} Rcb7 {[%emt 0:00:14]} 40. Nc2 {[%emt 0:00:00]} Rc7 {[%emt 0:00:00]} 41. Ne3 {[%emt 0:00:24]} 1/2-1/2

[Event "5th EKA IIFL Investment 2019"]
[Site "Mumbai"]
[Date "2020.01.02"]
[Round "4.33"]
[White "Jubin Jimmy"]
[Black "Mohammad, Nubairshah Shaikh"]
[Result "0-1"]
[ECO "A41"]
[WhiteElo "2193"]
[BlackElo "2421"]
[Annotator "ChessBase"]
[PlyCount "184"]
[EventDate "2019.12.30"]
[EventType "swiss"]
[EventCountry "IND"]
[SourceTitle "playchess.com"]
[Source "ChessBase"]
[SourceQuality "1"]
[TimeControl "40/5400+30:1800+30"]

1. d4 {[%emt 0:00:01]} d6 {[%emt 0:01:32]} 2. Nf3 {[%emt 0:00:38]} g6 {[%emt 0:00:21]} 3. g3 {[%emt 0:00:57]} Bg7 {[%emt 0:00:07]} 4. Bg2 {[%emt 0:00:05]} c5 {[%emt 0:08:33]} 5. dxc5 {[%emt 0:01:38]} Qa5+ {[%emt 0:00:32]} 6. c3 {[%emt 0:01:04]} Qxc5 {[%emt 0:01:13]} 7. O-O {[%emt 0:00:17]} Nf6 {[%emt 0:00:09]} 8. Nbd2 {[%emt 0:01:43]} O-O {[%emt 0:00:32]} 9. e4 {[%emt 0:00:40]} Qc7 {[%emt 0:09:49]} 10. Re1 {[%emt 0:02:36]} Nc6 {[%emt 0:00:06]} 11. h3 {[%emt 0:02:41]} Rb8 {[%emt 0:12:03]} 12. b3 {[%emt 0:08:31]} Nd7 {[%emt 0:06:43]} 13. Bb2 {[%emt 0:01:11]} Nc5 {[%emt 0:00:02]} 14. Nf1 {[%emt 0:15:35]} b5 {[%emt 0:00:32]} 15. Rc1 {[%emt 0:06:46]} Bb7 {[%emt 0:05:12]} 16. Ba1 {[%emt 0:09:03]} Ba8 {[%emt 0:04:19]} 17. Qe2 {[%emt 0:05:28]} Rfc8 {[%emt 0:03:18]} 18. Red1 {[%emt 0:04:43]} a5 {[%emt 0:04:14]} 19. Nd4 {[%emt 0:03:13]} Qb6 {[%emt 0:02:47]} 20. Kh2 {[%emt 0:04:11]} Rc7 {[%emt 0:19:37]} 21. f3 {[%emt 0:06:38]} Na6 {[%emt 0:08:12]} 22. Nxc6 {[%emt 0:03:23]} Bxc6 {[%emt 0:00:18]} 23. Ne3 {[%emt 0:01:41]} Rbc8 {[%emt 0:01:48]} 24. Nc2 {[%emt 0:05:54]} Bd7 {[%emt 0:01:23]} 25. Ne3 {[%emt 0:00:58]} Bc6 {[%emt 0:03:04]} 26. Nc2 {[%emt 0:02:13]} Nc5 {[%emt 0:00:30]} 27. Qe3 {[%emt 0:01:46]} Qa7 {[%emt 0:01:17]} 28. h4 {[%emt 0:02:01]} Bd7 {[%emt 0:01:11]} 29. Nd4 {[%emt 0:01:22]} h5 {[%emt 0:00:40]} 30. Bf1 {[%emt 0:02:09]} Ne6 {[%emt 0:00:37]} 31. Qd2 {[%emt 0:01:24]} b4 {[%emt 0:02:31]} 32. c4 {[%emt 0:01:08]} Ra8 {[%emt 0:01:49]} 33. Nxe6 {[%emt 0:02:12]} Bxe6 {[%emt 0:00:01]} 34. Bxg7 {[%emt 0:00:17]} Kxg7 {[%emt 0:00:01]} 35. Bh3 {[%emt 0:00:47]} Bxh3 {[%emt 0:00:26]} 36. Kxh3 {[%emt 0:00:01]} Rc5 {[%emt 0:01:32]} 37. Kg2 {[%emt 0:00:40]} Kg8 {[%emt 0:00:28]} 38. Rc2 {[%emt 0:01:30]} Qb6 {[%emt 0:00:41]} 39. Qf2 {[%emt 0:01:03]} a4 {[%emt 0:00:07]} 40. Rd3 {[%emt 0:00:00]} axb3 {[%emt 0:00:00]} 41. axb3 {[%emt 0:00:58]} Qa7 {[%emt 0:04:40]} 42. Qd2 {[%emt 0:08:42]} Qa3 {[%emt 0:01:01]} 43. Kh2 {[%emt 0:04:01]} Rca5 {[%emt 0:00:31]} 44. Kg2 {[%emt 0:01:15]} Kh7 {[%emt 0:02:18]} 45. Kh2 {[%emt 0:00:20]} Kg7 {[%emt 0:00:06]} 46. Kg2 {[%emt 0:00:08]} Kg8 {[%emt 0:00:15]} 47. Re3 {[%emt 0:05:13]} Qa1 {[%emt 0:05:08]} 48. Re1 {[%emt 0:00:26]} Qa2 {[%emt 0:01:11]} 49. Rxa2 {[%emt 0:02:56]} Rxa2 {[%emt 0:00:03]} 50. Re2 {[%emt 0:00:09]} Rxd2 {[%emt 0:00:09]} 51. Rxd2 {[%emt 0:00:02]} Ra3 {[%emt 0:00:29]} 52. Rb2 {[%emt 0:01:48]} Ra1 {[%emt 0:00:33]} 53. Re2 Ra8 {[%emt 0:00:28]} 54. Rd2 {[%emt 0:00:00]} Ra3 {[%emt 0:00:29]} 55. Rb2 {[%emt 0:01:30]} Ra1 {[%emt 0:00:33]} 56. e5 {[%emt 0:02:12]} dxe5 {[%emt 0:12:21]} 57. Rc2 {[%emt 0:00:06]} f6 {[%emt 0:01:24]} 58. c5 {[%emt 0:00:21]} Ra7 {[%emt 0:00:02]} 59. Kf2 {[%emt 0:02:48]} Kf7 {[%emt 0:00:02]} 60. Rc4 {[%emt 0:01:00]} Rc7 {[%emt 0:00:07]} 61. Ke3 {[%emt 0:01:24]} Ke6 {[%emt 0:00:02]} 62. Rxb4 {[%emt 0:00:12]} Rxc5 {[%emt 0:00:02]} 63. Rb7 {[%emt 0:00:20]} Rc3+ {[%emt 0:03:21]} 64. Kf2 {[%emt 0:00:21]} Rc2+ {[%emt 0:00:04]} 65. Kf1 {[%emt 0:00:14]} Rb2 {[%emt 0:03:48]} 66. Kg1 {[%emt 0:00:19]} g5 {[%emt 0:01:40]} 67. Rb4 {[%emt 0:03:29]} Kf5 {[%emt 0:02:47]} 68. Kf1 {[%emt 0:01:57]} gxh4 {[%emt 0:01:08]} 69. gxh4 {[%emt 0:00:12]} Ke6 {[%emt 0:00:41]} 70. Rb5 {[%emt 0:01:13]} Rh2 {[%emt 0:00:03]} 71. Rb4 {[%emt 0:00:15]} Kd5 {[%emt 0:00:13]} 72. Ke1 {[%emt 0:00:33]} f5 {[%emt 0:00:33]} 73. Rb7 {[%emt 0:01:02]} e6 {[%emt 0:00:18]} 74. Rb4 {[%emt 0:00:56]} f4 {[%emt 0:01:19]} 75. Kf1 {[%emt 0:00:17]} Rd2 {[%emt 0:00:41]} 76. Ke1 Rb2 {[%emt 0:00:04]} 77. Kf1 {[%emt 0:01:15]} Kd6 {[%emt 0:00:45]} 78. Ke1 {[%emt 0:00:21]} Kc6 {[%emt 0:00:39]} 79. Kf1 {[%emt 0:00:13]} Rh2 {[%emt 0:00:30]} 80. Kg1 Rd2 {[%emt 0:00:02]} 81. Kf1 {[%emt 0:01:51]} Rd4 {[%emt 0:00:29]} 82. Rb8 {[%emt 0:00:03]} e4 {[%emt 0:00:22]} 83. fxe4 {[%emt 0:00:08]} Rxe4 {[%emt 0:00:01]} 84. Kf2 {[%emt 0:01:00]} Re3 {[%emt 0:00:02]} 85. b4 {[%emt 0:00:28]} Rb3 {[%emt 0:00:19]} 86. Re8 {[%emt 0:01:26]} Kd5 {[%emt 0:00:04]} 87. Rh8 {[%emt 0:00:11]} Ke4 {[%emt 0:00:12]} 88. Rxh5 {[%emt 0:00:05]} e5 {[%emt 0:00:23]} 89. Rg5 {[%emt 0:00:09]} Rb2+ {[%emt 0:02:57]} 90. Ke1 {[%emt 0:00:27]} Rxb4 {[%emt 0:00:24]} 91. h5 {[%emt 0:00:05]} Rb2 {[%emt 0:00:44]} 92. Kf1 {[%emt 0:01:11]} f3 {[%emt 0:00:01]} 0-1

[Event "5th EKA IIFL Investment 2019"]
[Site "Mumbai"]
[Date "2020.01.02"]
[Round "4.34"]
[White "Kulkarni, Vinayak"]
[Black "Sundararajan, Kidambi"]
[Result "0-1"]
[ECO "E91"]
[WhiteElo "2167"]
[BlackElo "2414"]
[Annotator "ChessBase"]
[PlyCount "90"]
[EventDate "2019.12.30"]
[EventType "swiss"]
[EventCountry "IND"]
[SourceTitle "playchess.com"]
[Source "ChessBase"]
[SourceQuality "1"]
[TimeControl "40/5400+30:1800+30"]

1. d4 {[%emt 0:01:11]} Nf6 {[%emt 0:00:00]} 2. c4 {[%emt 0:00:14]} d6 {[%emt 0:00:03]} 3. Nc3 {[%emt 0:00:28]} g6 {[%emt 0:00:40]} 4. e4 {[%emt 0:00:27]} Bg7 {[%emt 0:00:07]} 5. Nf3 {[%emt 0:00:15]} O-O {[%emt 0:00:19]} 6. Be2 {[%emt 0:00:14]} Nbd7 {[%emt 0:00:19]} 7. O-O {[%emt 0:00:19]} e5 {[%emt 0:00:05]} 8. Be3 {[%emt 0:00:34]} Re8 {[%emt 0:00:54]} 9. d5 {[%emt 0:02:13]} Nh5 {[%emt 0:02:18]} 10. g3 {[%emt 0:03:22]} Nhf6 {[%emt 0:01:21]} 11. Nd2 {[%emt 0:03:41]} c5 {[%emt 0:01:14]} 12. a3 {[%emt 0:03:02]} Nf8 {[%emt 0:01:47]} 13. b4 {[%emt 0:01:20]} b6 {[%emt 0:01:28]} 14. Rb1 {[%emt 0:02:37]} h5 {[%emt 0:00:31]} 15. bxc5 {[%emt 0:02:22]} bxc5 {[%emt 0:01:01]} 16. Qa4 {[%emt 0:02:58]} Bh3 {[%emt 0:01:37]} 17. Rfe1 {[%emt 0:02:20]} Ng4 {[%emt 0:02:05]} 18. Bf1 {[%emt 0:09:31]} Bxf1 {[%emt 0:00:14]} 19. Nxf1 {[%emt 0:00:54]} h4 {[%emt 0:02:19]} 20. Rb7 {[%emt 0:07:56]} Qf6 {[%emt 0:03:31]} 21. Qd1 {[%emt 0:06:13]} Nxe3 {[%emt 0:00:43]} 22. Rxe3 {[%emt 0:04:31]} Re7 {[%emt 0:08:02]} 23. Qb1 {[%emt 0:11:33]} Bh6 {[%emt 0:06:35]} 24. Rd3 {[%emt 0:02:11]} Rae8 {[%emt 0:03:10]} 25. Rb2 {[%emt 0:05:23]} Nh7 {[%emt 0:02:30]} 26. Qd1 {[%emt 0:01:32]} Qg5 {[%emt 0:04:00]} 27. Nd2 {[%emt 0:05:22]} hxg3 {[%emt 0:01:45]} 28. Rxg3 {[%emt 0:02:14]} Qf6 {[%emt 0:03:35]} 29. Qg4 {[%emt 0:03:21]} Bf4 {[%emt 0:02:44]} 30. Rd3 {[%emt 0:01:11]} Qg7 {[%emt 0:07:13]} 31. Ne2 {[%emt 0:02:09]} f5 {[%emt 0:05:12]} 32. exf5 {[%emt 0:00:42]} gxf5 {[%emt 0:00:57]} 33. Qxg7+ {[%emt 0:01:15]} Rxg7+ {[%emt 0:00:08]} 34. Kh1 {[%emt 0:01:54]} Ng5 {[%emt 0:09:26]} 35. Ng3 {[%emt 0:01:38]} e4 {[%emt 0:02:58]} 36. Rdb3 {[%emt 0:00:10]} Bxd2 {[%emt 0:04:46]} 37. Rxd2 {[%emt 0:00:27]} Nf3 {[%emt 0:02:02]} 38. Rdb2 {[%emt 0:05:13]} f4 {[%emt 0:04:19]} 39. Rb8 {[%emt 0:01:48]} fxg3 {[%emt 0:06:36]} 40. Rxe8+ {[%emt 0:00:00]} Kf7 {[%emt 0:00:00]} 41. Rb7+ {[%emt 0:06:40]} Kxe8 {[%emt 0:00:15]} 42. Rxg7 {[%emt 0:00:12]} gxf2 {[%emt 0:00:08]} 43. Kg2 {[%emt 0:01:33]} e3 {[%emt 0:00:17]} 44. Rg8+ {[%emt 0:01:34]} Kf7 {[%emt 0:02:53]} 45. Rg3 {[%emt 0:01:51]} Nd2 {[%emt 0:00:28]} 0-1

[Event "5th EKA IIFL Investment 2019"]
[Site "Mumbai"]
[Date "2020.01.02"]
[Round "4.35"]
[White "Zysk, Robert"]
[Black "Souhardo Basak"]
[Result "1-0"]
[ECO "A46"]
[WhiteElo "2403"]
[BlackElo "2254"]
[Annotator "ChessBase"]
[PlyCount "77"]
[EventDate "2019.12.30"]
[EventType "swiss"]
[EventCountry "IND"]
[SourceTitle "playchess.com"]
[Source "ChessBase"]
[SourceQuality "1"]
[TimeControl "40/5400+30:1800+30"]

1. Nf3 {[%emt 0:00:00]} Nf6 {[%emt 0:00:00]} 2. d4 {[%emt 0:00:00]} e6 {[%emt 0:00:00]} 3. Bg5 {[%emt 0:01:54]} b6 {[%emt 0:05:32]} 4. e4 {[%emt 0:02:05]} h6 {[%emt 0:02:27]} 5. Bxf6 {[%emt 0:00:17]} Qxf6 {[%emt 0:00:03]} 6. Bd3 {[%emt 0:01:17]} Bb7 {[%emt 0:01:24]} 7. Nbd2 {[%emt 0:03:58]} d6 {[%emt 0:01:48]} 8. c3 {[%emt 0:07:08]} Nd7 {[%emt 0:00:47]} 9. Qe2 {[%emt 0:01:28]} g5 {[%emt 0:07:41]} 10. O-O {[%emt 0:08:06]} Bg7 {[%emt 0:02:34]} 11. Ba6 {[%emt 0:04:29]} Bxa6 {[%emt 0:06:09]} 12. Qxa6 {[%emt 0:00:05]} O-O {[%emt 0:02:24]} 13. Qb7 {[%emt 0:03:57]} Rfc8 {[%emt 0:07:10]} 14. Qc6 {[%emt 0:06:08]} Nf8 {[%emt 0:02:08]} 15. e5 {[%emt 0:08:44]} Qe7 {[%emt 0:00:48]} 16. Qe4 {[%emt 0:00:41]} h5 {[%emt 0:09:03]} 17. h3 {[%emt 0:02:24]} d5 {[%emt 0:01:43]} 18. Qe3 {[%emt 0:01:53]} Nh7 {[%emt 0:10:39]} 19. Nh2 {[%emt 0:19:00]} c5 {[%emt 0:03:57]} 20. Rfc1 {[%emt 0:02:48]} Rc7 {[%emt 0:02:53]} 21. Qe2 {[%emt 0:00:46]} cxd4 {[%emt 0:01:39]} 22. cxd4 {[%emt 0:00:07]} Rac8 {[%emt 0:00:47]} 23. Nb3 {[%emt 0:06:33]} Rxc1+ {[%emt 0:02:49]} 24. Rxc1 {[%emt 0:00:42]} Rxc1+ {[%emt 0:00:04]} 25. Nxc1 {[%emt 0:00:09]} Qb4 {[%emt 0:00:03]} 26. Nb3 {[%emt 0:00:59]} Qa4 {[%emt 0:00:02]} 27. g4 {[%emt 0:04:02]} Qxa2 {[%emt 0:01:21]} 28. Qc2 {[%emt 0:00:45]} h4 {[%emt 0:00:28]} 29. Nd2 {[%emt 0:01:10]} a5 {[%emt 0:02:02]} 30. Nhf3 {[%emt 0:00:29]} a4 {[%emt 0:03:47]} 31. Kg2 {[%emt 0:02:50]} Bf8 {[%emt 0:00:30]} 32. Qc6 {[%emt 0:01:20]} Bb4 {[%emt 0:08:44]} 33. Nf1 {[%emt 0:03:28]} Qxb2 {[%emt 0:02:32]} 34. Qxa4 {[%emt 0:00:24]} Bc3 {[%emt 0:00:34]} 35. Ne3 {[%emt 0:02:01]} b5 {[%emt 0:00:15]} 36. Qa7 {[%emt 0:01:12]} Bd2 {[%emt 0:02:07]} 37. Nf5 exf5 {[%emt 0:00:24]} 38. e6 {[%emt 0:03:02]} fxe6 {[%emt 0:01:24]} 39. Ne5 {[%emt 0:00:21]} 1-0

[Event "5th EKA IIFL Investment 2019"]
[Site "Mumbai"]
[Date "2020.01.02"]
[Round "4.36"]
[White "Rajesh, V A V"]
[Black "Raahul V S"]
[Result "1-0"]
[ECO "E73"]
[WhiteElo "2393"]
[BlackElo "2252"]
[Annotator "ChessBase"]
[PlyCount "43"]
[EventDate "2019.12.30"]
[EventType "swiss"]
[EventCountry "IND"]
[SourceTitle "playchess.com"]
[Source "ChessBase"]
[SourceQuality "1"]
[TimeControl "40/5400+30:1800+30"]

1. d4 {[%emt 0:00:00]} Nf6 {[%emt 0:00:00]} 2. c4 {[%emt 0:00:00]} g6 {[%emt 0:00:00]} 3. Nc3 {[%emt 0:00:00]} Bg7 {[%emt 0:00:46]} 4. e4 {[%emt 0:01:01]} d6 {[%emt 0:00:07]} 5. Be2 {[%emt 0:01:03]} O-O {[%emt 0:00:28]} 6. Bg5 {[%emt 0:01:04]} Na6 {[%emt 0:00:29]} 7. Qd2 {[%emt 0:00:28]} e5 {[%emt 0:00:20]} 8. d5 {[%emt 0:00:08]} Nc5 {[%emt 0:00:30]} 9. f3 {[%emt 0:09:36]} h6 {[%emt 0:03:13]} 10. Be3 {[%emt 0:00:57]} a5 {[%emt 0:03:18]} 11. Bd1 {[%emt 0:10:37]} Nh5 {[%emt 0:05:38]} 12. Nge2 {[%emt 0:01:53]} f5 {[%emt 0:03:55]} 13. exf5 {[%emt 0:01:25]} Qh4+ {[%emt 0:15:57]} 14. g3 {[%emt 0:12:40]} Qh3 {[%emt 0:11:32]} 15. Bxc5 {[%emt 0:13:47]} dxc5 {[%emt 0:02:30]} 16. Ng1 {[%emt 0:00:28]} Qxf5 {[%emt 0:01:38]} 17. g4 {[%emt 0:00:19]} Qf4 {[%emt 0:00:05]} 18. gxh5 {[%emt 0:00:23]} Qxc4 {[%emt 0:00:05]} 19. hxg6 {[%emt 0:01:09]} a4 {[%emt 0:01:01]} 20. Rc1 {[%emt 0:04:13]} Qh4+ {[%emt 0:00:43]} 21. Qf2 {[%emt 0:00:32]} Qg5 {[%emt 0:00:46]} 22. Nge2 {[%emt 0:00:11]} 1-0

[Event "5th EKA IIFL Investment 2019"]
[Site "Mumbai"]
[Date "2020.01.02"]
[Round "4.37"]
[White "Patil, Pratik"]
[Black "Manik, Mikulas"]
[Result "0-1"]
[ECO "B22"]
[WhiteElo "2167"]
[BlackElo "2379"]
[Annotator "ChessBase"]
[PlyCount "68"]
[EventDate "2019.12.30"]
[EventType "swiss"]
[EventCountry "IND"]
[SourceTitle "playchess.com"]
[Source "ChessBase"]
[SourceQuality "1"]
[TimeControl "40/5400+30:1800+30"]

1. e4 {[%emt 0:00:00]} c5 {[%emt 0:00:00]} 2. c3 {[%emt 0:01:06]} Nf6 {[%emt 0:00:00]} 3. e5 {[%emt 0:00:04]} Nd5 {[%emt 0:00:00]} 4. d4 {[%emt 0:00:02]} cxd4 {[%emt 0:00:00]} 5. Nf3 {[%emt 0:00:04]} Nc6 {[%emt 0:00:29]} 6. cxd4 {[%emt 0:00:01]} g6 {[%emt 0:00:17]} 7. Bc4 {[%emt 0:01:52]} Nb6 {[%emt 0:02:14]} 8. Bb3 {[%emt 0:02:35]} Bg7 {[%emt 0:01:12]} 9. O-O {[%emt 0:03:13]} O-O {[%emt 0:06:16]} 10. Bf4 {[%emt 0:04:24]} d6 {[%emt 0:02:18]} 11. exd6 {[%emt 0:03:04]} Bg4 {[%emt 0:00:55]} 12. dxe7 {[%emt 0:12:26]} Qxe7 {[%emt 0:02:42]} 13. Nbd2 {[%emt 0:00:10]} Nxd4 {[%emt 0:01:31]} 14. Re1 {[%emt 0:00:07]} Qd8 {[%emt 0:04:49]} 15. h3 {[%emt 0:02:03]} Nxb3 {[%emt 0:00:22]} 16. Qxb3 {[%emt 0:01:14]} Be6 {[%emt 0:00:49]} 17. Qa3 {[%emt 0:01:05]} Re8 {[%emt 0:03:27]} 18. Bd6 {[%emt 0:11:12]} Bd5 {[%emt 0:07:19]} 19. Rxe8+ {[%emt 0:01:22]} Qxe8 {[%emt 0:01:00]} 20. Re1 {[%emt 0:00:07]} Qb5 {[%emt 0:06:45]} 21. Be5 {[%emt 0:07:27]} Bf8 {[%emt 0:08:26]} 22. Qe3 {[%emt 0:01:18]} Re8 {[%emt 0:04:25]} 23. Qf4 {[%emt 0:03:54]} Bxf3 {[%emt 0:01:21]} 24. Nxf3 {[%emt 0:07:42]} Nd5 {[%emt 0:05:31]} 25. Qd4 {[%emt 0:07:37]} Nb4 {[%emt 0:10:32]} 26. Qh4 {[%emt 0:25:06]} Nd3 {[%emt 0:02:30]} 27. Bc3 {[%emt 0:00:28]} Rxe1+ {[%emt 0:06:54]} 28. Nxe1 {[%emt 0:00:19]} Nc1 {[%emt 0:00:05]} 29. Bf6 {[%emt 0:03:16]} Qe2 {[%emt 0:03:47]} 30. Bc3 {[%emt 0:01:11]} Nxa2 {[%emt 0:00:23]} 31. Qd4 {[%emt 0:00:30]} Nxc3 {[%emt 0:00:18]} 32. Qxc3 {[%emt 0:00:17]} Bd6 {[%emt 0:02:20]} 33. g3 {[%emt 0:00:42]} Be5 {[%emt 0:00:32]} 34. Qa5 {[%emt 0:00:23]} b6 {[%emt 0:00:41]} 0-1

[Event "5th EKA IIFL Investment 2019"]
[Site "Mumbai"]
[Date "2020.01.02"]
[Round "4.38"]
[White "Priyanka, Kumari"]
[Black "Konguvel, Ponnuswamy"]
[Result "0-1"]
[ECO "B35"]
[WhiteElo "1874"]
[BlackElo "2367"]
[Annotator "RC"]
[PlyCount "81"]
[EventDate "2019.12.30"]
[EventType "swiss"]
[EventCountry "IND"]
[SourceTitle "playchess.com"]
[Source "ChessBase"]
[SourceQuality "1"]
[TimeControl "40/5400+30:1800+30"]

1. e4 {[%emt 0:00:00]} c5 {[%emt 0:00:00]} 2. Nf3 {[%emt 0:00:00]} Nc6 {[%emt 0:00:01]} 3. d4 {[%emt 0:00:03]} cxd4 {[%emt 0:00:06]} 4. Nxd4 {[%emt 0:00:04]} g6 {[%emt 0:00:17]} 5. Nc3 {[%emt 0:00:41]} Bg7 {[%emt 0:00:18]} 6. Be3 {[%emt 0:00:25]} Nf6 {[%emt 0:00:07]} 7. Bc4 {[%emt 0:00:36]} O-O {[%emt 0:00:26]} 8. Bb3 {[%emt 0:00:38]} d6 {[%emt 0:00:24]} 9. h3 {[%emt 0:00:47]} Na5 {[%emt 0:02:09]} 10. O-O {[%emt 0:02:07]} b6 {[%emt 0:00:12]} 11. Re1 {[%emt 0:02:53]} Bb7 {[%emt 0:00:20]} 12. Bg5 {[%emt 0:01:11]} Nxb3 {[%emt 0:02:59]} 13. axb3 {[%emt 0:02:42]} h6 {[%emt 0:10:34]} 14. Bh4 {[%emt 0:06:40]} Qd7 {[%emt 0:00:40]} 15. Qd3 {[%emt 0:11:20]} Nh5 {[%emt 0:06:24]} 16. Rad1 {[%emt 0:18:46]} Rfe8 {[%emt 0:19:44]} 17. Nd5 {[%emt 0:10:25]} e6 {[%emt 0:04:29]} 18. Nc3 {[%emt 0:00:52]} a6 {[%emt 0:19:37]} 19. Nde2 {[%emt 0:06:35]} d5 {[%emt 0:06:11]} 20. g4 {[%emt 0:10:51]} g5 {[%emt 0:01:30]} 21. Bg3 {[%emt 0:04:29]} Nxg3 {[%emt 0:04:12]} 22. Nxg3 {[%emt 0:00:17]} d4 {[%emt 0:07:39]} 23. Nce2 {[%emt 0:01:25]} Rad8 {[%emt 0:00:03]} 24. c3 {[%emt 0:03:09]} f5 {[%emt 0:02:08]} 25. f3 {[%emt 0:09:02]} Qc7 {[%emt 0:01:37]} 26. c4 {[%emt 0:02:38]} Be5 {[%emt 0:02:38]} 27. Kg2 {[%emt 0:00:21]} fxe4 {[%emt 0:03:30]} 28. fxe4 {[%emt 0:00:21]} Rf8 {[%emt 0:00:17]} 29. Rf1 {[%emt 0:00:35]} Bxg3 30. Nxg3 Rf4 {[%emt 0:03:23]} 31. Rxf4 {[%emt 0:03:01]} gxf4 {[%emt 0:02:15]} 32. Nh1 {[%emt 0:00:34]} e5 {[%emt 0:01:01]} 33. Nf2 {[%emt 0:00:52]} Qe7 {[%emt 0:00:25]} 34. Qf3 {[%emt 0:00:55]} Qh4 {[%emt 0:00:14]} 35. Rd3 {[%emt 0:01:05]} Kf7 {[%emt 0:00:36]} 36. Kf1 {[%emt 0:00:27]} Ke6 {[%emt 0:00:18]} 37. Rd2 {[%emt 0:00:50]} Rg8 {[%emt 0:00:46]} 38. b4 {[%emt 0:00:25]} Rc8 {[%emt 0:00:42]} 39. c5 {[%emt 0:00:28]} Bc6 {[%emt 0:00:23]} 40. Qb3+ {[%emt 0:00:00]} Ke7 {[%emt 0:00:00]} 41. Kg2 {[%emt 0:07:21]} 0-1

[Event "5th EKA IIFL Investment 2019"]
[Site "Mumbai"]
[Date "2020.01.02"]
[Round "4.40"]
[White "Anuj Shrivatri"]
[Black "Ojas Kulkarni"]
[Result "1-0"]
[ECO "A34"]
[WhiteElo "2348"]
[BlackElo "2246"]
[Annotator "ChessBase"]
[PlyCount "75"]
[EventDate "2019.12.30"]
[EventType "swiss"]
[EventCountry "IND"]
[SourceTitle "playchess.com"]
[Source "ChessBase"]
[SourceQuality "1"]
[TimeControl "40/5400+30:1800+30"]

1. Nf3 {[%emt 0:00:00]} Nf6 {[%emt 0:00:00]} 2. c4 {[%emt 0:00:00]} c5 {[%emt 0:00:53]} 3. Nc3 {[%emt 0:00:00]} d5 {[%emt 0:00:36]} 4. cxd5 {[%emt 0:00:01]} Nxd5 {[%emt 0:00:06]} 5. e4 {[%emt 0:00:05]} Nb4 {[%emt 0:00:43]} 6. Bc4 {[%emt 0:03:46]} Nd3+ {[%emt 0:00:06]} 7. Ke2 {[%emt 0:00:04]} Nf4+ {[%emt 0:00:04]} 8. Kf1 {[%emt 0:00:03]} Ne6 {[%emt 0:00:04]} 9. b4 {[%emt 0:00:17]} g6 {[%emt 0:00:02]} 10. bxc5 {[%emt 0:00:20]} Bg7 {[%emt 0:00:10]} 11. Bb2 {[%emt 0:00:05]} O-O {[%emt 0:02:17]} 12. h4 {[%emt 0:19:03]} Nc6 {[%emt 0:05:46]} 13. h5 {[%emt 0:00:17]} Nxc5 {[%emt 0:04:33]} 14. d4 {[%emt 0:00:37]} Nd7 {[%emt 0:29:25]} 15. hxg6 {[%emt 0:08:52]} hxg6 {[%emt 0:00:07]} 16. d5 {[%emt 0:15:22]} Nce5 {[%emt 0:13:03]} 17. Be2 {[%emt 0:12:26]} Nxf3 {[%emt 0:12:31]} 18. gxf3 {[%emt 0:02:50]} e5 {[%emt 0:11:54]} 19. d6 {[%emt 0:11:59]} Nb6 {[%emt 0:00:10]} 20. Nb5 {[%emt 0:01:38]} Bd7 {[%emt 0:04:27]} 21. Nc7 {[%emt 0:08:39]} Rc8 {[%emt 0:00:01]} 22. a4 {[%emt 0:00:59]} Bc6 {[%emt 0:00:58]} 23. a5 {[%emt 0:01:17]} Nd7 {[%emt 0:00:06]} 24. Ba3 {[%emt 0:07:28]} Qf6 {[%emt 0:02:04]} 25. a6 {[%emt 0:00:33]} Rfd8 {[%emt 0:01:36]} 26. axb7 {[%emt 0:00:44]} Bxb7 {[%emt 0:00:03]} 27. Qa4 {[%emt 0:01:11]} Bf8 {[%emt 0:01:27]} 28. Rd1 {[%emt 0:00:59]} Nb8 {[%emt 0:01:40]} 29. Qxa7 {[%emt 0:01:47]} Bc6 {[%emt 0:00:07]} 30. Qe3 {[%emt 0:01:59]} Bb7 {[%emt 0:02:51]} 31. Rd2 {[%emt 0:01:10]} Bxd6 {[%emt 0:00:34]} 32. Ne8 {[%emt 0:00:50]} Rxe8 {[%emt 0:01:29]} 33. Rxd6 {[%emt 0:00:09]} Qg7 {[%emt 0:00:10]} 34. Qb3 {[%emt 0:00:32]} Ba8 {[%emt 0:01:04]} 35. Bc4 {[%emt 0:00:33]} Rc6 {[%emt 0:01:18]} 36. Bxf7+ {[%emt 0:00:53]} Qxf7 {[%emt 0:01:06]} 37. Rh8+ {[%emt 0:00:02]} Kg7 {[%emt 0:00:24]} 38. Rh7+ 1-0